[Event "American Cup Women Champions 2024"]
[Site "Saint Louis"]
[Date "2024.03.15"]
[Round "2.3"]
[White "Paikidze, Nazi"]
[Black "Krush, Irina"]
[Result "1-0"]
[ECO "B26"]
[WhiteElo "2319"]
[BlackElo "2421"]
[Annotator "TA"]
[PlyCount "87"]
[EventDate "2024.03.11"]
[EventType "k.o."]
[EventCountry "USA"]
[SourceTitle "playchess.com"]
[Source "ChessBase"]
[SourceQuality "1"]
[TimeControl "900+10"]

{[%evp 13,87,15,40,34,68,62,64,2,21,-80,67,56,85,77,73,45,37,49,42,41,72,76,76,73,79,80,114,130,247,236,239,288,273,268,283,284,284,293,287,281,267,173,188,163,168,160,156,130,100,126,200,211,204,206,228,232,340,358,341,308,593,591,693,690,739,1025,2600,2333,2389,2045,2264,2812,29988,29989,29992,29987]} 1. e4 {[%emt 0:00:00]} c5 {[%emt 0:00:00]} 2. Nc3 {[%emt 0:00:00]} e6 {[%emt 0:00:00]} 3. g3 {[%emt 0:00:00]} Nc6 {[%emt 0:00:00]} 4. Bg2 {[%emt 0:00:00]} g6 {[%emt 0:00:00]} 5. d3 {[%emt 0:00:00]} Bg7 {[%emt 0:00:00]} 6. Be3 {[%emt 0:00:00]} d6 {[%emt 0:00:00]} 7. Qd2 {[%emt 0:00:00]} Qd7 {[%emt 0:00:00]} 8. O-O-O {[%emt 0:00:00]} Rb8 {[%emt 0:00:00]} 9. f4 $1 {[%emt 0:00:00]} Nge7 {[%emt 0:00:00][%cal Bg8e7,Be7c6,Bc6d4][%mdl 32]} 10. g4 {[%emt 0:00:00]} (10. Nf3 $14) 10... b5 $11 {[%emt 0:00:00][%cal Bb7b5,Bb5b4][%mdl 32] [#]} 11. f5 {[%emt 0:00:00]} Nd4 {[%emt 0:00:00]} (11... exf5 12. exf5 b4 13. Ne4 gxf5 14. gxf5 Nxf5 15. Bg5 $11) (11... b4 $17 12. Nce2 Ne5 (12... exf5 13. gxf5 gxf5 14. Nf4 $11)) 12. Nce2 $14 {[%emt 0:00:00]} Nec6 {[%emt 0:00:00][%cal Re6f5]} 13. Nxd4 {[%emt 0:00:00]} Nxd4 {[%emt 0:00:00]} 14. c3 {[%emt 0:00:00]} Nc6 {[%emt 0:00:00]} 15. Nf3 {[%emt 0:00:00]} b4 {[%emt 0:00:00] aiming for ...bxc3.} 16. c4 {[%emt 0:00:00]} Nd4 {[%emt 0:00:00]} 17. Bxd4 {[%emt 0:00:00]} cxd4 {[%emt 0:00:00]} 18. Kb1 {[%emt 0:00:00] White is more active.} O-O {[%emt 0:00:00]} 19. h4 {[%emt 0:00:00][%cal Bh2h4,Bh4h5][%mdl 32]} Qe7 {[%emt 0:00:00][%cal Re6f5]} 20. Rde1 {[%emt 0:00:00]} e5 {[%emt 0:00:00] [#]} (20... Qd8 $16) 21. g5 $1 $18 {[%emt 0:00:00][%cal Bg4g5,Bg5h6][%mdl 32]} gxf5 {[%emt 0:00:00]} 22. exf5 {[%emt 0:00:00]} Bxf5 {[%emt 0:00:00]} 23. Nxd4 {[%emt 0:00:00]} Bd7 {[%emt 0:00:00]} 24. h5 {[%emt 0:00:00]} h6 {[%emt 0:00:00]} 25. gxh6 {[%emt 0:00:00]} Bf6 {[%emt 0:00:00]} 26. Bh3 {[%emt 0:00:00]} Kh7 {[%emt 0:06:20]} 27. Qf2 {[%emt 0:00:00]} Bg5 {[%emt 0:01:32]} 28. Bf5+ {[%emt 0:00:00]} Kh8 {[%emt 0:03:12]} 29. Bxd7 {[%emt 0:00:00]} Qxd7 {[%emt 0:00:00]} 30. Qf5 {[%emt 0:00:00]} Qxf5 {[%emt 0:02:26]} 31. Nxf5 {[%emt 0:00:00]} Rb6 {[%emt 0:01:00]} (31... Rfd8 $16 32. b3 Kh7) 32. Rhg1 {[%emt 0:00:00]} f6 {[%emt 0:00:00]} 33. d4 {[%emt 0:00:38][%cal Bd3d4,Bd4d5][%mdl 32]} b3 {[%emt 0:01:24] [#]} 34. axb3 {[%emt 0:02:36] And now c5 would win.} Rxb3 {[%emt 0:00:00]} (34... Rfb8 {was necessary.} 35. Rg2 (35. dxe5 Rxb3 36. Nxd6 Rxb2+ 37. Ka1 Kh7 $11) 35... Rxb3 36. Nxd6 exd4) 35. Nxd6 {[%emt 0:01:03]} Bxh6 {[%emt 0:02:59]} 36. d5 {[%emt 0:02:45] Strongly threatening c5.} (36. dxe5 Bf4 37. Rgf1 fxe5 $11 (37... Bxe5 $2 {perishes.} 38. Rxe5 fxe5 39. Rxf8+ $18)) 36... Kh7 $2 {[%emt 0:01:41]} (36... Rfb8 37. Rg2 Bf8) 37. c5 {[%emt 0:01:07][%cal Bc4c5,Bc5c6,Bc6c7][%mdl 32]} Rfb8 {[%emt 0:00:00]} 38. Rg2 {[%emt 0:00:19]} Bf8 {[%emt 0:00:07]} 39. Ne4 {[%emt 0:00:10]} Bg7 {[%emt 0:00:00]} 40. c6 {[%emt 0:01:20]} f5 {[%emt 0:00:09]} 41. Ng5+ {[%emt 0:02:19]} Kh6 {[%emt 0:00:00]} 42. Ne6 {[%emt 0:01:00] Threatening mate with c7.} Bh8 {[%emt 0:00:00]} 43. c7 {[%emt 0:01:08]} Rc8 {[%emt 0:00:00]} 44. Rh1 {[%emt 0:00:08] Weighted Error Value: White=0.15 (very precise) /Black=0.54.  Mistake:       	White=2     	Black=5      Inaccurate:     	White=2     	Black=4      OK:         	White=14    	Black=10     Best:        	White=2     	Black=3      Strong:       	White=2     	---} 1-0

[Event "American Cup Women Champions 2024"]
[Site "Saint Louis"]
[Date "2024.03.15"]
[Round "2.4"]
[White "Krush, Irina"]
[Black "Paikidze, Nazi"]
[Result "1-0"]
[ECO "E91"]
[WhiteElo "2421"]
[BlackElo "2319"]
[Annotator "TA"]
[PlyCount "63"]
[EventDate "2024.03.11"]
[EventType "k.o."]
[EventCountry "USA"]
[SourceTitle "playchess.com"]
[Source "ChessBase"]
[SourceQuality "1"]
[TimeControl "900+10"]

{[%evp 16,63,78,68,75,77,75,80,142,145,156,162,186,135,203,193,201,161,205,190,238,240,223,201,314,322,359,346,328,328,451,438,514,485,763,568,757,731,1237,781,800,785,1182,1080,5181,3228,29986,29987,29989,29990]} 1. d4 {[%emt 0:00:02]} g6 {[%emt 0:00:01]} 2. c4 {[%emt 0:00:04]} Bg7 {[%emt 0:00:02]} 3. e4 {[%emt 0:00:02]} d6 {[%emt 0:00:23]} 4. Nc3 {[%emt 0:00:02]} Nd7 {[%emt 0:00:10]} 5. Nf3 {[%emt 0:00:25]} c5 {[%emt 0:01:49]} 6. d5 {[%emt 0:01:51]} Ngf6 {[%emt 0:00:04]} 7. Be2 {[%emt 0:00:07]} a6 {[%emt 0:00:21]} 8. a4 {[%emt 0:00:20]} O-O {[%emt 0:00:03]} 9. O-O {[%emt 0:00:03]} Ne8 {[%emt 0:01:10]} 10. Bf4 {[%emt 0:00:27]} Ne5 {[%emt 0:01:26]} 11. Nxe5 {[%emt 0:00:32]} dxe5 {[%emt 0:00:13]} ({Black should try} 11... Bxe5 12. Bxe5 dxe5) 12. Be3 $16 {[%emt 0:00:02]} Qc7 {[%emt 0:00:19]} 13. a5 {[%emt 0:00:58] White is more active.} Bd7 {[%emt 0:00:26]} 14. Qc2 {[%emt 0:02:22]} ({White should play} 14. Qb1 $18) 14... Nd6 {[%emt 0:00:18]} (14... f5 $16 {keeps fighting.} 15. b4 cxb4) 15. Rfb1 $18 {[%emt 0:00:02]} f5 {[%emt 0:01:05]} 16. f3 {[%emt 0:00:02][%cal Bf2f3,Bf3e4][%mdl 32]} fxe4 {[%emt 0:01:13]} 17. Nxe4 {[%emt 0:00:40]} Bf5 {[%emt 0:01:11]} (17... Nxe4 $142 18. fxe4 (18. Qxe4 Bf5 $17) 18... e6) 18. b4 {[%emt 0:01:37]} (18. Bxc5 $2 Qxc5+ 19. Nxc5 Bxc2 $19) 18... cxb4 {[%emt 0:00:17]} 19. c5 {[%emt 0:00:02]} Bxe4 {[%emt 0:01:34]} (19... Nb5 $142 20. Qb3 (20. Rxb4 Nd4 $18) (20. Bxb5 axb5 21. Qb3 Qc8 $16) 20... Qc8 21. Bxb5 (21. Qxb4 Nd4 $18) 21... axb5 22. Qxb4 h5 23. Qxb5 Bxe4) 20. fxe4 {[%emt 0:00:03]} Nb5 {[%emt 0:00:05]} 21. Bxb5 {[%emt 0:01:30]} (21. Rxb4 Nd4 22. Qc4 Kh8 $18) 21... axb5 {[%emt 0:00:02]} 22. Qa2 {[%emt 0:00:01] [#] Black must now prevent d6+.} (22. Rxb4 Rxa5 23. Rab1 Qd7 $18) 22... Qd7 {[%emt 0:00:40]} 23. Rxb4 {[%emt 0:00:04]} ({Don't do} 23. c6 Qc8 24. Bb6 (24. Rxb4 Kh8 $18) (24. d6+ Kh8 $18) 24... Bh6 $18) 23... Kh8 {[%emt 0:00:33]} 24. Qe2 {[%emt 0:00:30]} Ra6 {[%emt 0:00:40]} (24... h5 $142 25. h3 (25. Rxb5 Rf6 $18) (25. Qxb5 Qg4 $18) 25... Rfb8 26. Qxb5 (26. Rxb5 Bf6 $18) 26... Qc8) 25. Rxb5 {[%emt 0:00:35][%cal Bb4b5,Bb5b7,Bb7b8][%mdl 32]} Rfa8 {[%emt 0:00:36]} 26. Rab1 {[%emt 0:00:33]} Rxa5 {[%emt 0:00:06]} 27. Rxb7 {[%emt 0:00:12]} Qe8 {[%emt 0:00:38]} 28. c6 {[%emt 0:00:02][%cal Bc5c6,Bc6c7][%mdl 32] [#] And now c7 would win.} Ra1 {[%emt 0:00:11]} 29. Qd1 {[%emt 0:00:39]} Rxb1 {[%emt 0:00:41]} 30. Qxb1 {[%emt 0:00:04] White threatens c7 and mate.} e6 {[%emt 0:00:01]} 31. c7 {[%emt 0:00:18]} Rc8 {[%emt 0:00:10]} 32. Rb8 {[%emt 0:00:14] White took control after the opening.   Weighted Error Value: White=0.19 (very precise) /Black=0.77.  Mistake:       	White=1     	Black=5      Inaccurate:     	---       	Black=3      OK:         	White=10    	Black=3      Best:        	White=1     	---} 1-0

[Event "American Cup Women Champions 2024"]
[Site "Saint Louis"]
[Date "2024.03.16"]
[Round "3.1"]
[White "Krush, Irina"]
[Black "Lee, Alice"]
[Result "1-0"]
[ECO "C00"]
[WhiteElo "2421"]
[BlackElo "2356"]
[Annotator "TA"]
[PlyCount "77"]
[EventDate "2024.03.11"]
[EventType "k.o."]
[EventCountry "USA"]
[SourceTitle "playchess.com"]
[Source "ChessBase"]
[SourceQuality "1"]
[TimeControl "5400+30"]

{[%evp 15,77,-7,2,-15,-16,-24,-10,-19,-14,-25,0,0,42,45,112,72,95,41,97,117,139,129,139,89,117,122,132,97,121,122,128,112,104,33,54,61,56,50,62,61,69,0,135,160,169,101,125,42,110,0,0,0,143,118,352,334,346,337,518,517,729,732,29987,29988]} 1. Nf3 {[%emt 0:00:06]} d5 {[%emt 0:00:07]} 2. g3 {[%emt 0:00:09]} Nf6 {[%emt 0:01:09]} 3. Bg2 {[%emt 0:00:14]} e6 {[%emt 0:00:17]} 4. O-O {[%emt 0:00:37]} Be7 {[%emt 0:00:34]} 5. d3 {[%emt 0:00:48]} O-O {[%emt 0:01:10]} 6. Nbd2 {[%emt 0:00:20]} c5 {[%emt 0:01:06]} 7. e4 {[%emt 0:00:21]} Nc6 {[%emt 0:00:34]} 8. Re1 {[%emt 0:00:31]} a6 {[%emt 0:06:02]} 9. e5 {[%emt 0:08:50]} Nd7 {[%emt 0:02:46]} 10. Nf1 {[%emt 0:00:24]} b5 {[%emt 0:03:29]} 11. h4 {[%emt 0:01:40] The position is equal.} Bb7 {[%emt 0:03:04]} 12. N1h2 {[%emt 0:00:52]} Rc8 {[%emt 0:12:35]} 13. Ng4 {[%emt 0:12:25]} c4 {[%emt 0:08:16]} 14. d4 {[%emt 0:02:44]} c3 {[%emt 0:05:40]} 15. b3 {[%emt 0:02:35]} a5 {[%emt 0:04:54]} 16. a3 {[%emt 0:02:10]} ({White should play} 16. Bf1 $16) 16... Qe8 {[%emt 0:10:44]} (16... b4 $14) 17. Qd3 $16 {[%emt 0:04:47]} h5 {[%emt 0:13:30]} 18. Ngh2 {[%emt 0:02:36]} (18. Qxb5 $2 hxg4 19. Nh2 Nxd4 $19) 18... b4 {[%emt 0:03:50]} 19. a4 {[%emt 0:00:47]} (19. axb4 $142 {Hoping for b5.} Nxb4 20. Qd1) 19... Nd8 {[%emt 0:01:48]} 20. Bg5 {[%emt 0:06:24]} f5 {[%emt 0:05:51]} 21. exf6 {[%emt 0:01:35]} Nxf6 {[%emt 0:00:12] [#]} 22. Ne5 $1 {[%emt 0:06:15] White is more active.} Ne4 {[%emt 0:00:18]} 23. Bxe7 {[%emt 0:00:50]} Qxe7 {[%emt 0:00:06]} 24. f4 {[%emt 0:13:31]} (24. Nhf3 $16) 24... Rf6 {[%emt 0:03:08] Prevents Ng6} 25. Nf1 {[%emt 0:01:57][%cal Rg2e4]} Nf7 {[%emt 0:00:31]} 26. Qe2 {[%emt 0:05:25]} g6 {[%emt 0:06:01]} 27. Bxe4 {[%emt 0:01:25]} dxe4 {[%emt 0:00:07]} 28. Ne3 {[%emt 0:03:26]} (28. Qb5 $1 $14) 28... Nxe5 {[%emt 0:01:36]} (28... Nd6 $1 $11) 29. dxe5 {[%emt 0:00:17]} Rf7 {[%emt 0:04:06]} 30. Rad1 {[%emt 0:01:18]} ({White should try} 30. Red1 $18) 30... Rd8 {[%emt 0:00:56] Prevents Rd6} 31. Kh2 {[%emt 0:08:48]} (31. Qb5 $16 Rd2 32. Rxd2 cxd2 33. Rd1) 31... Kg7 {[%emt 0:00:56] [#]} ({Better is} 31... Qc7 $14) 32. Nc4 {[%emt 0:07:43]} (32. Qb5 $1 $16 {[%cal Rb5a5]}) 32... Rxd1 $11 {[%emt 0:00:34]} 33. Rxd1 {[%emt 0:00:02][%cal Oc4d6]} Rf8 {[%emt 0:00:28]} (33... Rxf4 $1 $11 {keeps the balance.} 34. gxf4 Qxh4+ 35. Kg1 e3 36. Rd7+ (36. Nxe3 Qh1+ 37. Kf2 Qh4+ 38. Kg1 Qh1+ 39. Kf2 Qh4+ 40. Kg1 $11) 36... Kh6 37. Rxb7 (37. Qxe3 Qg4+ 38. Kf2 Qg2+ 39. Ke1 Bf3 $11) 37... Qg3+ 38. Qg2 (38. Kf1 Qh3+ 39. Kg1 Qg3+ 40. Kf1 Qh3+ 41. Kg1 Qg3+ $11) 38... Qe1+ 39. Qf1 Qg3+ 40. Qg2 Qe1+ 41. Qf1 Qg3+ 42. Kh1 (42. Qg2 Qe1+ $11) 42... Qh4+ 43. Kg2 (43. Kg1 Qg3+ $11) 43... Qg4+ 44. Kh2 Qh4+ 45. Kg1 Qg4+ 46. Kh1 (46. Kh2 Qh4+ 47. Kg2 Qg4+ 48. Kh2 $11) 46... Qh4+ 47. Kg2 (47. Kg1 Qg3+ $11) 47... Qg4+ 48. Kh2 Qh4+ 49. Kg1 Qg4+ 50. Kh2) 34. Nd6 $16 {[%emt 0:02:10]} (34. Nxa5 Bd5 $14) 34... Rd8 $2 {[%emt 0:00:17] Black cannot hold the game after this.} (34... Bd5 $16 35. Qf2 (35. Nxe4 Bxe4 36. Qxe4 Rd8 $11) 35... e3 36. Qxe3 Kh7) 35. Qb5 $18 {[%emt 0:00:54]} (35. Nxe4 $2 {is the wrong capture.} Rxd1 36. Qxd1 Bxe4 $19) 35... e3 {[%emt 0:00:23]} 36. Re1 {[%emt 0:01:15]} (36. Qxb7 $2 {perishes.} Qxb7 37. Rd3 Qb6 $19 (37... Qf3 {leads to mate.} 38. Rxe3 Qxe3 39. Kg2 Qe2+ 40. Kh1 Qxc2 41. g4 Qe2 42. gxh5 c2 43. Nf5+ Kf8 44. Ng3 c1=Q+ 45. Nf1 Qcxf1#) (37... Qf3 38. Rxe3 Qxe3 39. Kg2 Qe2+ 40. Kh1 Qxc2 41. g4 Qe2 42. gxh5 c2 43. Nf5+ Kf8 44. Ng3 c1=Q+ 45. Nf1 Qcxf1#)) 36... Bd5 {[%emt 0:00:50]} (36... Ba8 {was called for.}) 37. Qxa5 {[%emt 0:00:15]} Ra8 {[%emt 0:00:27]} 38. Qxb4 {[%emt 0:00:59][%cal Od6f5] Intending Nf5+! and mate.} g5 {[%emt 0:00:34] [#]} 39. Nf5+ $1 {[%emt 0:00:12][%mdl 512] Weighted Error Value: White=0.22 (precise) /Black=0.66.  Loses game:     	---       	Black=1      Mistake:       	White=7     	Black=6      Inaccurate:     	White=1     	Black=4      OK:         	White=14    	Black=7      Best:        	White=2     	Black=1      Strong:       	White=1     	---} 1-0

[Event "American Cup Women Champions 2024"]
[Site "Saint Louis"]
[Date "2024.03.16"]
[Round "3.2"]
[White "Lee, Alice"]
[Black "Krush, Irina"]
[Result "1/2-1/2"]
[ECO "E11"]
[WhiteElo "2356"]
[BlackElo "2421"]
[Annotator "TA"]
[PlyCount "93"]
[EventDate "2024.03.11"]
[EventType "k.o."]
[EventCountry "USA"]
[SourceTitle "playchess.com"]
[Source "ChessBase"]
[SourceQuality "1"]
[TimeControl "5400+30"]

{[%evp 9,93,8,13,5,24,0,0,12,29,41,45,37,41,34,32,-35,-39,-39,-37,-31,-39,-38,-39,-45,-43,-48,-55,-67,-56,-66,-56,-122,-122,-143,-120,-152,-143,-278,-181,-191,-169,-245,-252,-217,-204,-272,-164,-245,-230,-322,-294,-325,-325,-291,-343,-343,-321,-284,-282,-5094,-5010,-1983,-537,-771,-759,-680,111,0,0,0,0,0,0,0,0,0,0,0,0,0,0,0,0,0,0,0]} 1. d4 {[%emt 1:15:42]} Nf6 {[%emt 1:15:42]} 2. c4 {[%emt 0:00:22]} e6 {[%emt 0:00:22]} 3. Nf3 {[%emt 0:00:21]} Bb4+ {[%emt 0:00:22]} 4. Bd2 {[%emt 0:00:22]} Qe7 {[%emt 0:00:25]} 5. e3 {[%emt 0:00:27]} b6 {[%emt 0:01:04]} 6. Bd3 {[%emt 0:00:30] E11: Bogo-Indian.} Bxd2+ {[%emt 0:00:23]} (6... Bb7 7. O-O Bxd2 8. Nbxd2 c5 9. e4 cxd4 10. e5 Ng4 11. h3 Nh6 12. Nxd4 Nc6 13. Nxc6 Bxc6 14. Ne4 O-O 15. Qh5 Nf5 16. Ng3 g6 {½-½ Lee,A (2388)-Krush,I (2437) USA-ch (Women) 2023 (9)}) 7. Qxd2 {[%emt 0:00:26]} Bb7 {[%emt 0:00:32]} 8. Nc3 {[%emt 0:00:23]} c5 {[%emt 0:00:22]} 9. e4 {[%emt 0:01:07]} cxd4 {[%emt 0:00:24]} 10. Nxd4 {[%emt 0:01:03]} Nc6 $146 {[%emt 0:00:22]} ({Predecessor:} 10... d6 11. O-O O-O 12. Rae1 Nc6 13. Bb1 Rac8 14. Nc2 a6 15. b3 Qc7 16. Ne3 Ne5 {0-1 Makkar,R (2465)-Noe,C (2528) London GM-A 2023 (3)}) 11. Nxc6 {[%emt 0:00:35]} dxc6 {[%emt 0:00:22]} 12. Qg5 {[%emt 0:00:47]} (12. e5 $14 Nd7 13. Qe3) 12... e5 $15 {[%emt 0:01:38]} 13. O-O {[%emt 0:02:13]} O-O {[%emt 0:00:34]} 14. Ne2 {[%emt 0:00:43]} h6 {[%emt 0:01:12]} 15. Qe3 {[%emt 0:00:36]} Rad8 {[%emt 0:01:26]} 16. Rfd1 {[%emt 0:01:01]} Bc8 {[%emt 0:01:53]} 17. Rac1 {[%emt 0:01:16]} Be6 {[%emt 0:00:51]} 18. a3 {[%emt 0:05:05]} Rd7 {[%emt 0:01:56]} 19. h3 {[%emt 0:01:01]} Rfd8 {[%emt 0:00:22]} 20. b4 {[%emt 0:00:55] [#]} (20. Ng3 $1 $15) 20... Nh5 $1 $17 {[%emt 0:03:25]} 21. Qf3 {[%emt 0:02:18]} Qg5 {[%emt 0:01:14]} 22. Kf1 {[%emt 0:00:54]} c5 {[%emt 0:01:05]} 23. b5 {[%emt 0:01:12]} (23. bxc5 $17 bxc5 24. Rc3) 23... Nf4 {[%emt 0:00:39]} 24. Nxf4 {[%emt 0:00:29]} exf4 {[%emt 0:00:21]} 25. Rc3 {[%emt 0:02:16]} (25. Be2 $142) 25... Qe5 $19 {[%emt 0:00:38]} 26. Rdc1 {[%emt 0:00:25]} Rd4 {[%emt 0:00:46]} 27. a4 {[%emt 0:00:51]} f6 {[%emt 0:01:04]} 28. Qe2 {[%emt 0:00:42]} (28. Kg1 {is a better defense.}) 28... Bf7 {[%emt 0:01:04]} 29. f3 {[%emt 0:00:28]} Qd6 {[%emt 0:00:37]} 30. Rd1 {[%emt 0:00:37]} Kf8 {[%emt 0:00:42][%cal Of7c4] White must now prevent ...Bxc4!} 31. Ke1 {[%emt 0:00:39] [#]} Bxc4 $1 {[%emt 0:01:04][%mdl 512]} 32. Rxc4 {[%emt 0:00:24]} Rxd3 {[%emt 0:00:21]} 33. Rxd3 {[%emt 0:00:35]} Qxd3 {[%emt 0:00:21][%mdl 4096] Endgame. KQR-KQR} 34. h4 $2 {[%emt 0:00:33]} (34. Qxd3 Rxd3 35. h4) 34... Qb1+ {[%emt 0:01:53]} 35. Kf2 {[%emt 0:00:23]} Qh1 {[%emt 0:00:22]} (35... Rd1 $142 {( -> ...Rh1)} 36. Qxd1 Qxd1) 36. e5 {[%emt 0:00:37]} Rd1 {[%emt 0:00:21][%csl Gd1][%cal Rh1g1]} 37. Rxf4 {[%emt 0:00:25] [#]} Qg1+ $2 {[%emt 0:01:02]} (37... g5 $1 $19 {[%cal Rg5f4]} 38. Rxf6+ Kg7 39. Rxh6 (39. hxg5 $2 hxg5 40. Rc6 Qh4+ 41. g3 Qd4+ 42. Kg2 Rd2 $19) 39... Kxh6 40. hxg5+ Kg7 (40... Kxg5 41. Qe3+ Kh5 42. g4+ Kg6 43. Qe4+ Kg7 44. Qb7+ Kf8 45. Qa8+ Ke7 46. Qb7+ Rd7 47. Qxd7+ Kxd7 48. e6+ Kxe6 49. g5 c4 50. g6 c3 51. f4 c2 52. g7 Kf7 53. Kg3 c1=Q 54. g8=Q+ Kxg8 55. Kg4 Qcg1+ 56. Kf5 Qd5+ 57. Kf6 Qg7#)) 38. Kg3 $11 {[%emt 0:00:22]} Re1 {[%emt 0:00:25]} 39. Qd3 {[%emt 0:00:38] Intending Qd8+ and mate.} Rxe5 {[%emt 0:00:33]} 40. Qd8+ {[%emt 0:00:31]} Kf7 {[%emt 0:01:06] ...Qe1+ is the strong threat.} 41. Qd7+ {[%emt 0:00:21]} Re7 {[%emt 0:01:04]} 42. Qd5+ {[%emt 0:00:21]} Kf8 {[%emt 0:00:44] Strongly threatening ...Qe1+.} 43. Qd8+ {[%emt 0:00:22]} Kf7 {[%emt 0:00:34]} 44. Qd5+ {[%emt 0:00:22]} Kf8 {[%emt 0:00:25] aiming for ...Qe1+.} 45. Qd8+ {[%emt 0:00:21]} Kf7 {[%emt 0:00:21] Hoping for ...Qe1+.} 46. Qd5+ {[%emt 0:00:22]} Kf8 {[%emt 0:00:30] ...Qe1+ would now be deadly.} 47. Qd8+ {[%emt 0:00:10]} 1/2-1/2